[Event "Chinese League Div-A Rapid 2022"]
[Site "Fuling,Chongqing"]
[Date "2022.09.12"]
[Round "6.21"]
[White "Pang, Tao"]
[Black "Wei, Yi"]
[Result "0-1"]
[ECO "E94"]
[WhiteElo "2427"]
[BlackElo "2727"]
[Annotator "TA"]
[PlyCount "176"]
[EventDate "2022.09.07"]
[EventType "team-tourn"]
[EventCountry "CHN"]
[SourceTitle "playchess.com"]
[Source "ChessBase"]
[SourceQuality "1"]
[TimeControl "1500+10"]

{[%evp 15,176,18,16,28,43,8,23,25,22,20,32,27,34,8,-4,-1,27,15,22,14,18,24,35,36,48,23,45,56,76,45,73,21,50,49,75,28,57,0,82,0,36,0,72,57,61,65,61,0,0,0,2,7,4,0,0,0,0,0,0,0,0,0,0,0,8,4,21,0,0,0,0,-8,-6,-6,-6,-8,-2,-3,0,-6,-6,-10,-8,-8,-3,-8,0,0,-2,-2,-5,-5,0,-2,0,-6,-6,-6,-9,-10,-7,-9,0,0,0,0,0,0,0,0,0,0,0,-24,-24,-21,-20,-25,-8,-8,-9,-18,-19,-25,0,-190,-175,-163,-175,-114,-115,-1216,-97,-97,-4,-248,-248,-239,-239,-239,-242,-241,-225,-1029,-253,-12829,-12824,-12829,-10087,-12846,-12847,-12847,-12847,-12848,-12848,-12849,-12849,-12850,-12850,-12850,-27999,-27999,-27999]} 1. d4 {[%emt 0:00:02]} Nf6 {[%emt 0:00:02]} 2. Nf3 {[%emt 0:00:02]} g6 {[%emt 0:00:12]} 3. c4 {[%emt 0:00:02]} Bg7 {[%emt 0:00:02]} 4. Nc3 {[%emt 0:00:01]} O-O {[%emt 0:00:13]} 5. e4 {[%emt 0:00:04]} d6 {[%emt 0:00:02]} 6. Be2 {[%emt 0:00:02]} Na6 {[%emt 0:00:10]} 7. O-O {[%emt 0:00:04]} e5 {[%emt 0:00:03]} 8. dxe5 {[%emt 0:02:50]} dxe5 {[%emt 0:00:03]} 9. Qc2 {[%emt 0:01:01] E94: King's Indian: Classical: 6 Be2 e5 7 0-0: Various Black 7th moves.} Qe8 {[%emt 0:01:45]} 10. Rd1 {[%emt 0:00:16]} Bg4 {[%emt 0:01:42]} 11. Be3 {[%emt 0:00:59] White has an edge.} c6 {[%emt 0:00:41]} 12. a3 {[%emt 0:01:08] [#]} Nd7 $146 {[%emt 0:00:57]} ({Predecessor:} 12... Nh5 13. h3 Bxf3 14. Bxf3 Nf4 15. Ne2 Ne6 16. Bg4 Nac7 17. Rd2 c5 18. Bxe6 Nxe6 {½-½ (25) Vignesh,N (2188)-Ramnath,B (2339) Chennai 2013}) 13. b4 {[%emt 0:01:19]} Nc7 {[%emt 0:00:13]} 14. Ng5 {[%emt 0:03:37]} (14. Nd2 $5 {[%cal Re2g4]} Bxe2 15. Nxe2 $14) 14... Bxe2 {[%emt 0:01:13]} 15. Qxe2 {[%emt 0:00:03]} h6 {[%emt 0:02:40]} 16. Nf3 {[%emt 0:00:11]} Ne6 {[%emt 0:00:04]} 17. c5 {[%emt 0:00:55]} Qe7 {[%emt 0:00:38]} 18. Rd6 {[%emt 0:02:09]} Rfd8 {[%emt 0:03:05]} 19. Rad1 {[%emt 0:01:16]} Ndf8 {[%emt 0:00:31]} 20. b5 {[%emt 0:02:05]} Rxd6 {[%emt 0:04:25]} 21. cxd6 {[%emt 0:00:42]} Qd7 {[%emt 0:00:01]} 22. bxc6 {[%emt 0:03:36]} bxc6 {[%emt 0:00:04]} 23. Na4 {[%emt 0:00:56]} (23. Qa6 $16) 23... Rb8 {[%emt 0:00:28]} 24. Qc2 {[%emt 0:01:20]} Rb5 {[%emt 0:00:37][%cal Oc6c5]} 25. Nc3 {[%emt 0:00:32]} ({White should play} 25. h4 $16) 25... Rb7 {[%emt 0:00:03]} 26. Na4 {[%emt 0:00:05]} Rb5 $1 {[%emt 0:03:44][%cal Oc6c5]} 27. Nc3 {[%emt 0:00:01]} ({Better is} 27. h4 $16) 27... Rb8 {[%emt 0:00:02]} 28. Na4 {[%emt 0:00:01]} Qb7 {[%emt 0:00:45]} (28... Rb5 $1 $11 {keeps the balance.}) 29. Nc5 $16 {[%emt 0:00:50]} Nxc5 {[%emt 0:00:04]} 30. Qxc5 {[%emt 0:00:02]} Nd7 {[%emt 0:00:08]} 31. Qxa7 {[%emt 0:00:29]} (31. Qa5 $1 $14) 31... Qxa7 $11 {[%emt 0:00:05]} 32. Bxa7 {[%emt 0:00:01]} Ra8 {[%emt 0:00:03]} 33. Be3 {[%emt 0:00:01]} Rxa3 {[%emt 0:00:06]} 34. h3 {[%emt 0:01:00]} f5 {[%emt 0:00:27]} 35. Nh4 {[%emt 0:00:51][%csl LRf5,LRg6]} f4 {[%emt 0:02:42]} 36. Bc1 {[%emt 0:00:01]} Ra4 {[%emt 0:01:05]} 37. Nxg6 {[%emt 0:00:00]} Kf7 {[%emt 0:00:08]} 38. Ne7 {[%emt 0:00:01]} Rxe4 {[%emt 0:00:27]} 39. Nxc6 {[%emt 0:00:02]} Rc4 {[%emt 0:00:07]} 40. Ne7 {[%emt 0:00:38]} Bf8 {[%emt 0:00:36]} 41. Nf5 {[%emt 0:00:16]} Rc3 {[%emt 0:00:27]} 42. Bb2 {[%emt 0:01:41]} Rb3 {[%emt 0:00:03]} 43. Bxe5 {[%emt 0:00:13]} Rb5 {[%emt 0:00:02]} 44. Bxf4 {[%emt 0:00:04]} Rxf5 {[%emt 0:00:01]} 45. g3 {[%emt 0:00:17]} Kg6 {[%emt 0:00:48]} 46. Kg2 {[%emt 0:00:05]} Bg7 {[%emt 0:00:08]} 47. Re1 {[%emt 0:00:07]} Bf6 {[%emt 0:00:15]} 48. Re8 {[%emt 0:00:13]} Rd5 {[%emt 0:00:08]} 49. Rg8+ {[%emt 0:00:06]} Bg7 {[%emt 0:00:07]} 50. Re8 {[%emt 0:00:12]} Nf6 {[%emt 0:00:15]} 51. Re6 {[%emt 0:00:07]} Kf5 {[%emt 0:00:19]} 52. Re7 {[%emt 0:00:06]} Bf8 {[%emt 0:00:07]} 53. Ra7 {[%emt 0:00:43]} Kg6 {[%emt 0:00:07]} 54. Ra6 {[%emt 0:00:12]} Kf5 {[%emt 0:00:27]} 55. Rb6 {[%emt 0:00:09]} Nd7 {[%emt 0:00:18]} 56. Rb7 {[%emt 0:00:09]} Ke6 {[%emt 0:00:01]} 57. Ra7 {[%emt 0:00:05]} h5 {[%emt 0:00:19]} 58. g4 {[%emt 0:00:03]} h4 {[%emt 0:00:07]} 59. Ra8 {[%emt 0:00:07]} Kf7 {[%emt 0:00:14]} 60. Ra7 {[%emt 0:00:04]} Ke6 {[%emt 0:00:01]} 61. Ra8 {[%emt 0:00:00]} Rb5 {[%emt 0:00:22]} 62. Re8+ {[%emt 0:00:09]} Kf7 {[%emt 0:00:01]} 63. Rd8 {[%emt 0:00:02]} Nc5 {[%emt 0:00:17]} 64. Rc8 {[%emt 0:00:29]} Ne6 {[%emt 0:00:08]} 65. Bh2 {[%emt 0:00:02]} Rd5 {[%emt 0:00:09]} 66. Rc6 {[%emt 0:00:07]} Rd4 {[%emt 0:00:08]} 67. Ra6 {[%emt 0:00:13]} Bh6 {[%emt 0:00:06]} 68. Be5 {[%emt 0:00:16]} Rd5 {[%emt 0:00:02]} 69. Bh2 {[%emt 0:00:24]} Bf4 {[%emt 0:00:07]} 70. Ra4 $2 {[%emt 0:00:40]} (70. Bxf4 $11 Nxf4+ 71. Kf3 Nxh3 72. Ke4) 70... Bxh2 $19 {[%emt 0:00:11]} ({And not} 70... Bxd6 71. Ra7+ Be7 72. Bb8) 71. Kxh2 {[%emt 0:00:00]} Rxd6 {[%emt 0:00:04][%mdl 4096] Endgame KRN-KR} 72. Kg2 {[%emt 0:00:09]} Kf6 {[%emt 0:00:12] White must now prevent ...Ke5.} 73. Rb4 $2 {[%emt 0:00:12][%mdl 8192]} (73. Ra5 $17) 73... Rd5 $2 {[%emt 0:00:05]} (73... Ke5 $1 $19 74. g5 Nd4) 74. Re4 $17 {[%emt 0:00:06][%cal Og4g5] [#] Inhibits Nf4+.} Re5 {[%emt 0:00:11]} (74... Ng5 $1 $17 {[%cal Rg5e4]} 75. Re8 Kg7) 75. Ra4 $2 {[%emt 0:00:07]} (75. g5+ $1 $11 {and White is okay.} Rxg5+ 76. Kf3) 75... Kg5 $19 {[%emt 0:00:03] Threatens to win with ...Nf4+.} 76. Ra8 {[%emt 0:00:24] [#]} Nf4+ $1 {[%emt 0:00:02]} 77. Kf3 {[%emt 0:00:11][%cal Oa8e8]} Rb5 {[%emt 0:00:48]} 78. Rg8+ {[%emt 0:00:11]} Ng6 {[%emt 0:00:01]} 79. Kg2 $2 {[%emt 0:00:11]} (79. Ke3) 79... Kf6 $2 {[%emt 0:00:01]} (79... Rb3 {And now ...Rc3 would win.} 80. Kh2 Kh6) 80. Re8 $2 {[%emt 0:00:06]} (80. Rc8) 80... Rb3 {[%emt 0:00:14]} 81. Re4 {[%emt 0:00:15]} Kg5 {[%emt 0:00:01]} 82. Re3 {[%emt 0:00:08]} Nf4+ {[%emt 0:00:06]} 83. Kh2 {[%emt 0:00:13]} Rxe3 {[%emt 0:00:02]} 84. fxe3 {[%emt 0:00:01]} Nd5 {[%emt 0:00:01]} 85. e4 {[%emt 0:00:08]} Nf4 {[%emt 0:00:01]} 86. e5 {[%emt 0:00:05]} Kg6 {[%emt 0:00:01]} 87. Kg1 {[%emt 0:00:05]} Nxh3+ {[%emt 0:00:03]} 88. Kg2 {[%emt 0:00:01]} Ng5 {[%emt 0:00:02] Weighted Error Value: White=0.13 (very precise) /Black=0.09 (flawless)} 0-1

[Event "Chinese League Div-A Rapid 2022"]
[Site "Fuling,Chongqing"]
[Date "2022.09.12"]
[Round "6.22"]
[White "Wang, Hao B"]
[Black "Chen, Qi b"]
[Result "0-1"]
[ECO "D52"]
[WhiteElo "2165"]
[BlackElo "2485"]
[Annotator "TA"]
[PlyCount "68"]
[EventDate "2022.09.07"]
[EventType "team-tourn"]
[EventCountry "CHN"]
[SourceTitle "playchess.com"]
[Source "ChessBase"]
[SourceQuality "1"]
[TimeControl "1500+10"]

{[%evp 18,68,2,0,12,0,50,39,44,32,32,22,46,40,49,46,52,31,37,20,30,17,16,-16,-20,-106,-102,-85,-106,-144,-148,-244,-240,-239,-260,-252,-241,-252,-259,-340,-320,-581,-548,-574,-537,-779,-765,-711,-703,-993,-982,-29992,-29993]} 1. d4 {[%emt 0:00:01]} Nf6 {[%emt 0:00:01]} 2. c4 {[%emt 0:00:02]} e6 {[%emt 0:00:01]} 3. Nf3 {[%emt 0:00:03]} d5 {[%emt 0:00:05]} 4. Nc3 {[%emt 0:00:03]} Nbd7 {[%emt 0:00:03]} 5. Bg5 {[%emt 0:00:09]} c6 {[%emt 0:00:02]} 6. e3 {[%emt 0:00:04]} Qa5 {[%emt 0:00:02]} 7. Nd2 {[%emt 0:00:02]} Bb4 {[%emt 0:00:08]} 8. Qc2 {[%emt 0:00:07]} O-O {[%emt 0:00:04]} 9. Bxf6 {[%emt 0:00:54]} Nxf6 {[%emt 0:00:06]} 10. Bd3 {[%emt 0:00:05]} Rd8 {[%emt 0:01:51] D52: Queen's Gambit Declined: Cambridge Springs Variation.} 11. O-O {[%emt 0:00:05]} dxc4 {[%emt 0:00:11]} (11... Qc7 $11) 12. Nxc4 $14 {[%emt 0:00:11] Pair of Knights!} Qc7 {[%emt 0:00:02] White is slightly better.} 13. a3 {[%emt 0:00:14]} Bf8 {[%emt 0:00:09] [#]} 14. Ne4 $146 {[%emt 0:00:48]} ({Predecessor:} 14. Ne5 g6 15. Rac1 Nd5 16. Rfd1 f6 17. Nf3 Nxc3 18. Qxc3 a5 19. e4 a4 20. Be2 {1-0 (45) Stanescu,T (2337)-Monteiro,A (1823) ICCF email 2015}) 14... Nxe4 {[%emt 0:01:09]} 15. Bxe4 {[%emt 0:00:02]} g6 {[%emt 0:00:09]} 16. b4 {[%emt 0:01:18]} Bd7 {[%emt 0:00:17]} 17. h4 {[%emt 0:00:32]} Be8 {[%emt 0:00:17]} 18. g3 {[%emt 0:00:47]} Rac8 {[%emt 0:00:06]} 19. Rac1 {[%emt 0:00:06]} b6 {[%emt 0:02:00][%cal Bb7b6,Bb6c5,Bc5d4,Bd4e3,Be3e2][%mdl 32]} 20. Ne5 {[%emt 0:04:55]} c5 {[%emt 0:00:17]} 21. f4 {[%emt 0:00:03]} (21. Rfd1 $11 {keeps the balance.}) 21... Qe7 $17 {[%emt 0:03:07]} 22. bxc5 {[%emt 0:02:38]} bxc5 {[%emt 0:00:01]} 23. Rfd1 {[%emt 0:00:05] [#]} f6 $1 {[%emt 0:04:01]} 24. Nd3 {[%emt 0:02:31]} (24. Nf3 $17 {is a better defense.}) 24... cxd4 $19 {[%emt 0:01:25]} 25. Qxc8 {[%emt 0:00:03]} Rxc8 {[%emt 0:00:01]} 26. Rxc8 {[%emt 0:00:02]} Qd7 {[%emt 0:00:07]} ({Weaker is} 26... dxe3 27. Nc1 $17) 27. Rdc1 {[%emt 0:04:23]} dxe3 {[%emt 0:00:09] Hoping for ...e2.} 28. Ne1 {[%emt 0:00:01]} Qd2 {[%emt 0:01:20]} ({And not} 28... Bxa3 29. R1c7 Qa4 30. Bc6 $11) 29. Nf3 $2 {[%emt 0:04:23]} (29. Bg2 {was necessary.}) 29... Qf2+ {[%emt 0:01:06]} 30. Kh1 {[%emt 0:00:01] [#]} e2 $1 {[%emt 0:00:06] Strongly threatening ...Bd7.} 31. Ne1 {[%emt 0:00:01] [#]} (31. Rg1 Bd7) 31... Qxg3 $1 {[%emt 0:01:23] ( -> ...Qh3+)} 32. Ng2 {[%emt 0:01:12]} Qxa3 {[%emt 0:00:55]} 33. Re1 {[%emt 0:00:12] [#]} Bc5 $1 {[%emt 0:00:39][%cal Ra3h3]} 34. Kh2 {[%emt 0:00:47] [#] Inhibits Qh3+.} (34. Rxc5 Qxc5) 34... Bf2 $1 {[%emt 0:00:02] Weighted Error Value: White=0.90/Black=0.07 (flawless)} 0-1

[Event "Chinese League Div-A Rapid 2022"]
[Site "Fuling,Chongqing"]
[Date "2022.09.12"]
[Round "6.23"]
[White "Ma, Zhonghan"]
[Black "Lin, Chen"]
[Result "1-0"]
[ECO "E68"]
[WhiteElo "2485"]
[BlackElo "2485"]
[Annotator "TA"]
[PlyCount "71"]
[EventDate "2022.09.07"]
[EventType "team-tourn"]
[EventCountry "CHN"]
[SourceTitle "playchess.com"]
[Source "ChessBase"]
[SourceQuality "1"]
[TimeControl "1500+10"]

{[%evp 25,71,44,106,75,80,52,60,53,53,62,60,16,77,54,108,71,129,101,108,66,88,64,72,75,58,50,56,57,44,46,39,50,90,90,91,81,127,78,87,71,128,91,166,165,148,157,477,463]} 1. d4 {[%emt 0:00:03]} Nf6 {[%emt 0:00:02]} 2. c4 {[%emt 0:00:04]} g6 {[%emt 0:00:02]} 3. Nf3 {[%emt 0:00:08]} Bg7 {[%emt 0:00:04]} 4. g3 {[%emt 0:00:06]} O-O {[%emt 0:00:06]} 5. Bg2 {[%emt 0:00:03]} d6 {[%emt 0:00:14]} 6. O-O {[%emt 0:00:06]} Nbd7 {[%emt 0:00:14]} 7. Nc3 {[%emt 0:00:04]} e5 {[%emt 0:00:03]} 8. h3 {[%emt 0:00:15]} Re8 {[%emt 0:00:41]} 9. e4 {[%emt 0:00:18]} exd4 {[%emt 0:02:12]} 10. Nxd4 {[%emt 0:00:02]} Nc5 {[%emt 0:00:04]} 11. Re1 {[%emt 0:00:07]} Nfd7 {[%emt 0:00:14]} 12. Be3 {[%emt 0:01:56]} Ne5 {[%emt 0:00:32]} 13. b3 {[%emt 0:00:26]} c6 {[%emt 0:00:33]} ({Black should play} 13... a5 $14) 14. Re2 {[%emt 0:02:16] E68: King's Indian: Fianchetto: 6...Nbd7 7 0-0 e5 8 e4.} Qa5 {[%emt 0:02:33]} 15. Qc2 {[%emt 0:01:33]} Ne6 {[%emt 0:00:44] [#]} 16. Nxe6 $146 {[%emt 0:02:18] White is slightly better.} ({Predecessor:} 16. Rd1 Nxd4 17. Bxd4 Bxh3 18. f4 Bxg2 19. Kxg2 Ng4 20. Bxg7 Kxg7 {½-½ (20) Krallmann,M (2285)-Krass,H Dortmund 1993}) 16... Bxe6 {[%emt 0:00:30]} 17. Rc1 {[%emt 0:00:05]} f5 {[%emt 0:01:44]} 18. f4 {[%emt 0:02:55]} Nf7 {[%emt 0:03:25]} (18... Nd7 $11) 19. Bf2 {[%emt 0:01:07]} Re7 {[%emt 0:02:58]} (19... Kf8 $14) 20. Qd2 {[%emt 0:01:19][%cal Oc3d5] [#] Strongly threatening Nd5!} (20. Nd5 {with more complications.} Rd7 21. Be1 Qd8 22. Bc3) 20... Qc7 {[%emt 0:03:02]} ({Black should try} 20... Bxc3 21. Qxc3 (21. Rxc3 Bd7 $14) 21... Qxc3 22. Rxc3 Bd7) 21. Bd4 {[%emt 0:06:01]} Rae8 {[%emt 0:03:20]} 22. Rce1 {[%emt 0:00:09]} a6 {[%emt 0:01:54]} 23. Bxg7 {[%emt 0:00:19]} Kxg7 {[%emt 0:00:02]} 24. Qd4+ {[%emt 0:00:01]} Kf8 {[%emt 0:00:41]} 25. Re3 {[%emt 0:02:29]} Bc8 {[%emt 0:00:17]} 26. exf5 {[%emt 0:01:11]} (26. a3 {is interesting.} Re6 27. b4 Qe7 28. a4) 26... Rxe3 {[%emt 0:00:11]} 27. Rxe3 {[%emt 0:00:01]} Rxe3 {[%emt 0:00:07]} 28. Qxe3 {[%emt 0:00:02] Hoping for f6.} gxf5 {[%emt 0:00:40]} 29. Qd4 {[%emt 0:00:15] White is more active.} Qe7 {[%emt 0:00:04]} 30. Kf2 {[%emt 0:00:09] Prevents Qe1+.} Bd7 {[%emt 0:00:32]} (30... Qe6 $142) 31. Qb6 {[%emt 0:00:57]} (31. Nd1 $142) 31... Be6 {[%emt 0:00:45]} 32. Bf3 {[%emt 0:00:37]} Bc8 {[%emt 0:00:35]} (32... Qf6 $142 33. Ne2 Nd8) 33. Qd4 {[%emt 0:00:24]} Kg8 {[%emt 0:00:10]} (33... Qe6 $16) 34. Nd1 $18 {[%emt 0:00:24]} Bd7 {[%emt 0:01:00]} 35. Ne3 {[%emt 0:00:33]} b5 $2 {[%emt 0:00:04] [#]} (35... Nd8 $16 {is more resistant.} 36. Qb6 Kf8) 36. Bxc6 $1 {[%emt 0:00:51][%mdl 512] Weighted Error Value: White=0.18 (very precise) /Black=0.38} 1-0

[Event "Chinese League Div-A Rapid 2022"]
[Site "Fuling,Chongqing"]
[Date "2022.09.12"]
[Round "6.24"]
[White "Guo, Qi"]
[Black "Sun, Fanghui"]
[Result "1-0"]
[ECO "E11"]
[WhiteElo "2406"]
[BlackElo "2182"]
[Annotator "TA"]
[PlyCount "79"]
[EventDate "2022.09.07"]
[EventType "team-tourn"]
[EventCountry "CHN"]
[SourceTitle "playchess.com"]
[Source "ChessBase"]
[SourceQuality "1"]
[TimeControl "1500+10"]

{[%evp 12,79,30,19,19,16,39,15,20,26,39,29,41,37,79,56,58,62,83,64,95,92,102,76,89,88,69,65,62,77,370,379,434,425,595,327,597,588,577,549,967,325,320,300,289,319,307,287,356,354,401,360,716,440,438,438,426,397,426,403,410,380,478,426,478,478,478,478,472,452]} 1. d4 {[%emt 0:00:02]} Nf6 {[%emt 0:00:02]} 2. c4 {[%emt 0:00:01]} e6 {[%emt 0:00:02]} 3. Nf3 {[%emt 0:00:02]} Bb4+ {[%emt 0:00:02]} 4. Bd2 {[%emt 0:00:54]} c5 {[%emt 0:00:03]} 5. Bxb4 {[%emt 0:00:07]} cxb4 {[%emt 0:00:02]} 6. a3 {[%emt 0:00:04]} bxa3 {[%emt 0:00:07]} 7. Nxa3 {[%emt 0:00:02] is the legacy move (7.Rxa3).} O-O {[%emt 0:00:24] E11: Bogo-Indian.} 8. e3 {[%emt 0:00:14]} d6 {[%emt 0:02:13]} 9. Be2 {[%emt 0:00:24]} Nc6 {[%emt 0:01:05] [#] The position is equal.} 10. Nc2 $146 {[%emt 0:00:04]} ({Predecessor:} 10. O-O e5 11. Nb5 a6 12. d5 Nb4 13. Nd2 Bf5 14. Nc3 {½-½ (14) Gallego Alcaraz,A (2500)-Narciso Dublan,M (2483) Badalona 2018}) 10... e5 {[%emt 0:00:53]} 11. b4 {[%emt 0:00:26]} exd4 {[%emt 0:02:16]} 12. Nfxd4 {[%emt 0:00:26]} d5 {[%emt 0:00:36]} 13. c5 {[%emt 0:01:00]} Ne5 {[%emt 0:00:28]} 14. O-O {[%emt 0:00:18]} a6 {[%emt 0:01:15]} 15. Na3 {[%emt 0:04:59][%cal Bc2a3,Ba3b5,Bb5c3,Bc3a4,Ba4b6][%mdl 32]} Qc7 {[%emt 0:03:59] [#]} 16. Nab5 $1 {[%emt 0:01:25]} Qe7 {[%emt 0:02:32]} 17. Nc3 {[%emt 0:02:29]} Be6 {[%emt 0:00:20][%cal Oa6a5]} 18. Qc2 {[%emt 0:01:02]} a5 {[%emt 0:01:12]} 19. bxa5 {[%emt 0:03:18] White is more active.} Qxc5 {[%emt 0:00:11]} 20. Qb2 {[%emt 0:00:19]} Rfc8 $2 {[%emt 0:02:59][%mdl 8192] Black cannot hold the game after this.} (20... Nc4 $16 {was worth a try.} 21. Qxb7 Nxa5) 21. Na4 $18 {[%emt 0:00:26]} Qe7 {[%emt 0:03:12]} 22. Nb6 {[%emt 0:00:04]} Bg4 {[%emt 0:00:11]} 23. Nxc8 {[%emt 0:01:45]} Rxc8 {[%emt 0:00:02]} (23... Bxc8 24. Rfc1 g6) 24. Bxg4 {[%emt 0:00:22]} Nfxg4 {[%emt 0:00:04]} 25. h3 {[%emt 0:00:04]} Nc4 {[%emt 0:01:21]} 26. Qe2 {[%emt 0:00:40]} (26. Nf5 {[%csl Gf5][%cal Rb2g7]} Qf8 27. Qxb7) 26... Nf6 {[%emt 0:00:17]} 27. Rfc1 {[%emt 0:00:23]} Re8 {[%emt 0:00:10]} 28. a6 {[%emt 0:00:56]} bxa6 {[%emt 0:00:04]} 29. Rxa6 {[%emt 0:00:02]} Qe4 {[%emt 0:00:45][%cal Oe4d4]} 30. Qc2 {[%emt 0:00:54]} Qh4 {[%emt 0:00:22]} 31. Rca1 {[%emt 0:00:53]} g6 $2 {[%emt 0:00:21]} (31... Qe4 32. Qxe4 Nxe4) 32. Nf3 {[%emt 0:00:49]} Qe4 {[%emt 0:00:21]} 33. Qc3 {[%emt 0:00:05]} Nd7 {[%emt 0:00:41]} 34. Ra8 {[%emt 0:00:04][%cal Of3e5] [#] Ne5! is the strong threat.} Ndb6 {[%emt 0:00:03]} 35. Rxe8+ {[%emt 0:00:08]} Qxe8 {[%emt 0:00:02]} 36. Nd2 {[%emt 0:00:13]} Qc6 {[%emt 0:00:22]} 37. Rc1 {[%emt 0:00:12] White is clearly winning.} Qb5 {[%emt 0:00:34]} 38. Rb1 {[%emt 0:00:29]} Qc6 {[%emt 0:00:20]} 39. Nxc4 {[%emt 0:00:08]} dxc4 {[%emt 0:00:02]} 40. Qd4 {[%emt 0:00:06] Weighted Error Value: White=0.40/Black=0.58} 1-0

[Event "Chinese League Div-A Rapid 2022"]
[Site "Fuling,Chongqing"]
[Date "2022.09.12"]
[Round "6.25"]
[White "Zhang, Xiao"]
[Black "Shao, Qiyu"]
[Result "0-1"]
[ECO "D93"]
[WhiteElo "2073"]
[BlackElo "1467"]
[Annotator "NA RC"]
[PlyCount "128"]
[EventDate "2022.09.07"]
[EventType "team-tourn"]
[EventCountry "CHN"]
[SourceTitle "playchess.com"]
[Source "ChessBase"]
[SourceQuality "1"]
[TimeControl "1500+10"]

1. d4 {[%emt 0:00:02]} Nf6 {[%emt 0:00:01]} 2. c4 {[%emt 0:00:02]} g6 {[%emt 0:00:02]} 3. Nc3 {[%emt 0:00:03]} d5 {[%emt 0:00:02]} 4. Nf3 {[%emt 0:00:04]} Bg7 {[%emt 0:00:03]} 5. Bf4 {[%emt 0:00:03]} O-O {[%emt 0:00:23]} 6. Rc1 {[%emt 0:00:02]} c6 {[%emt 0:00:08]} 7. e3 {[%emt 0:00:09]} Bg4 {[%emt 0:01:38]} 8. Qb3 {[%emt 0:00:51]} Qb6 {[%emt 0:01:25]} 9. Qxb6 {[%emt 0:00:20]} axb6 {[%emt 0:00:01]} 10. cxd5 {[%emt 0:00:04]} cxd5 {[%emt 0:00:13]} 11. Ne5 {[%emt 0:00:28]} Bf5 {[%emt 0:00:21]} 12. Be2 {[%emt 0:00:40]} Nc6 {[%emt 0:01:29]} 13. O-O {[%emt 0:01:55]} Rfd8 {[%emt 0:02:00]} 14. Rfd1 {[%emt 0:01:32]} h6 {[%emt 0:03:08]} 15. Bb5 {[%emt 0:01:02]} g5 {[%emt 0:03:36]} 16. Bg3 {[%emt 0:00:09]} Ne4 {[%emt 0:00:53]} 17. Nxc6 {[%emt 0:01:31]} bxc6 {[%emt 0:01:22]} 18. Bxc6 {[%emt 0:00:03]} Nxc3 {[%emt 0:00:28]} 19. Bxa8 {[%emt 0:00:28]} Nxd1 {[%emt 0:00:10]} 20. Bb7 {[%emt 0:02:42]} Nxb2 {[%emt 0:00:20]} 21. Bc7 {[%emt 0:00:10]} Rf8 {[%emt 0:00:40]} 22. Bxd5 {[%emt 0:00:15]} e6 {[%emt 0:01:32]} 23. Bb7 {[%emt 0:00:27]} b5 {[%emt 0:00:17]} 24. Rc3 {[%emt 0:01:15]} Bf6 {[%emt 0:02:14]} 25. Rb3 {[%emt 0:00:20]} Nc4 {[%emt 0:00:04]} 26. Rxb5 {[%emt 0:00:21]} Bd8 {[%emt 0:00:13]} 27. Bg3 {[%emt 0:00:57]} Be7 {[%emt 0:00:25]} 28. a4 {[%emt 0:07:18]} Bd6 {[%emt 0:00:54]} 29. e4 {[%emt 0:01:53]} Bxg3 {[%emt 0:01:05]} 30. hxg3 {[%emt 0:00:27]} Nd6 {[%emt 0:00:06]} 31. exf5 {[%emt 0:00:31]} Nxb5 {[%emt 0:00:04]} 32. axb5 {[%emt 0:00:02]} Rb8 {[%emt 0:00:06]} 33. Bc6 {[%emt 0:00:08]} exf5 {[%emt 0:00:03]} 34. Kf1 {[%emt 0:00:45]} Kf8 {[%emt 0:00:10]} 35. Ke2 {[%emt 0:00:02]} Ke7 {[%emt 0:00:03]} 36. Kd3 {[%emt 0:00:02]} Kd6 {[%emt 0:00:01]} 37. Kc4 {[%emt 0:00:03]} h5 {[%emt 0:00:16]} 38. Kb4 {[%emt 0:00:44]} h4 {[%emt 0:00:10]} 39. gxh4 {[%emt 0:00:11]} gxh4 {[%emt 0:00:02]} 40. Ka5 {[%emt 0:00:08]} Kc7 {[%emt 0:01:21]} 41. d5 {[%emt 0:00:19]} f4 {[%emt 0:01:25]} 42. f3 {[%emt 0:00:08]} Rg8 {[%emt 0:00:16]} 43. b6+ {[%emt 0:00:47]} Kb8 {[%emt 0:00:02]} 44. d6 {[%emt 0:00:48]} Rxg2 {[%emt 0:00:08]} 45. d7 {[%emt 0:00:02]} Rd2 {[%emt 0:00:02]} 46. Kb5 {[%emt 0:00:37]} h3 {[%emt 0:00:09]} 47. Kc5 {[%emt 0:00:11]} Rxd7 {[%emt 0:00:03]} 48. Bxd7 {[%emt 0:01:01]} h2 {[%emt 0:00:02]} 49. Bc6 {[%emt 0:00:49]} h1=Q {[%emt 0:00:04]} 50. b7 {[%emt 0:00:04]} Kc7 {[%emt 0:00:06]} 51. Be4 {[%emt 0:00:02]} Qh6 {[%emt 0:00:26]} 52. Kd4 {[%emt 0:00:06]} Qf6+ {[%emt 0:00:18]} 53. Kc4 {[%emt 0:00:09]} Qd6 {[%emt 0:00:08]} 54. Bd5 {[%emt 0:00:19]} f5 {[%emt 0:00:18]} 55. Kd4 {[%emt 0:00:08]} Kb6 {[%emt 0:00:06]} 56. Kc3 {[%emt 0:00:14]} Kc5 {[%emt 0:00:21]} 57. Be6 {[%emt 0:00:18]} Qd4+ {[%emt 0:00:13]} 58. Kc2 {[%emt 0:00:04]} Qa4+ {[%emt 0:00:07]} 59. Kc1 {[%emt 0:00:17]} Qb4 {[%emt 0:00:13]} 60. Bc8 {[%emt 0:00:17]} Kd4 {[%emt 0:00:03]} 61. Bxf5 {[%emt 0:00:10]} Qxb7 {[%emt 0:00:04]} 62. Bg4 {[%emt 0:00:11]} Kc3 {[%emt 0:00:15]} 63. Kd1 {[%emt 0:00:04]} Qe7 {[%emt 0:00:24]} 64. Bf5 {[%emt 0:00:15]} Qe3 {[%emt 0:00:02]} 0-1